[Event "98th Caplin Hastings Masters 2024-25"]
[Site "Hastings"]
[Date "2024.12.31"]
[Round "5.2"]
[White "Zhang, Pengxiang"]
[Black "Kovchan, Alexander"]
[Result "1-0"]
[ECO "B81"]
[WhiteElo "2567"]
[BlackElo "2455"]
[Annotator "TA"]
[PlyCount "105"]
[EventDate "2024.12.23"]
[EventType "swiss"]
[EventCountry "ENG"]
[SourceTitle "playchess.com"]
[Source "ChessBase"]
[SourceQuality "1"]
[TimeControl "5400+30"]

{[%evp 21,105,18,18,12,19,11,25,20,25,22,29,11,19,22,19,17,14,14,39,37,22,28,32,30,22,8,8,14,40,23,20,20,17,18,119,110,196,202,192,172,165,37,37,37,66,52,110,112,112,95,91,86,74,115,141,30,30,37,37,37,462,508,270,270,849,50,50,50,251,251,822,799,2627,1873,29974,29974,29974,29975,29975,29976,29976,29977,29975,29976,29973,29969]} 1. e4 {[%emt 0:00:06]} c5 {[%emt 0:00:07]} 2. Nf3 {[%emt 0:00:05]} d6 {[%emt 0:00:07]} 3. d4 {[%emt 0:00:04]} cxd4 {[%emt 0:00:08]} 4. Nxd4 {[%emt 0:00:04]} Nf6 {[%emt 0:00:08]} 5. Nc3 {[%emt 0:00:03]} a6 {[%emt 0:00:06]} 6. h3 {[%emt 0:00:05]} e6 {[%emt 0:00:27]} 7. g4 {[%emt 0:00:18]} d5 {[%emt 0:00:07]} 8. exd5 {[%emt 0:01:52]} Nxd5 {[%emt 0:00:10]} 9. Nde2 {[%emt 0:00:11]} Nxc3 {[%emt 0:00:24]} 10. Qxd8+ {[%emt 0:00:19]} Kxd8 {[%emt 0:00:05]} 11. Nxc3 {[%emt 0:00:05]} Bd7 {[%emt 0:00:08]} 12. Bg2 {[%emt 0:11:20]} Bc6 {[%emt 0:00:25]} 13. O-O {[%emt 0:00:19]} Bxg2 {[%emt 0:05:41]} 14. Kxg2 {[%emt 0:00:38]} Nd7 {[%emt 0:10:25]} 15. Ne4 {[%emt 0:04:43]} h5 {[%emt 0:08:35]} 16. Rd1 {[%emt 0:05:18]} hxg4 {[%emt 0:01:39]} 17. hxg4 {[%emt 0:00:08]} Ke8 {[%emt 0:03:47]} 18. Bf4 {[%emt 0:07:18]} Rc8 {[%emt 0:06:14]} 19. Rd2 {[%emt 0:00:45]} Nf6 {[%emt 0:03:21]} 20. Nxf6+ {[%emt 0:06:11]} gxf6 {[%emt 0:00:17]} 21. Rad1 {[%emt 0:00:07]} Bh6 {[%emt 0:09:22]} 22. Bxh6 {[%emt 0:13:24]} Rxh6 {[%emt 0:00:12]} 23. Rd7 {[%emt 0:00:04]} Rg6 {[%emt 0:06:23]} 24. c3 {[%emt 0:11:09]} b5 {[%emt 0:14:25]} 25. Ra7 {[%emt 0:03:05]} Rxg4+ {[%emt 0:04:12]} 26. Kf3 {[%emt 0:00:26]} Rh4 {[%emt 0:05:35]} 27. Rdd7 {[%emt 0:00:55]} Rh3+ {[%emt 0:00:59]} (27... Rh7 $11 {keeps the balance.}) 28. Ke2 $1 $16 {[%emt 0:12:56]} b4 {[%emt 0:00:02]} (28... Rh7 $16) 29. Re7+ $18 {[%emt 0:01:50]} (29. cxb4 $6 Rc2+ 30. Rd2 Rc6 $16) (29. Rxf7 $6 bxc3 30. bxc3 Rcxc3 $14) 29... Kf8 {[%emt 0:00:52]} 30. Rxf7+ {[%emt 0:00:05]} Kg8 {[%emt 0:00:18]} 31. Rxf6 {[%emt 0:04:38]} (31. cxb4 $18 {[%cal Of7b7]} Rc2+ 32. Kf1) 31... bxc3 $14 {[%emt 0:00:17]} 32. bxc3 {[%emt 0:00:13]} (32. Rxa6 $2 c2 (32... cxb2 $2 33. Rb6 $19) 33. Rg6+ Kf7 $19) 32... Rc6 {[%emt 0:03:20]} 33. Rg6+ {[%emt 0:09:43]} Kf8 {[%emt 0:05:55]} (33... Kh8 $14) 34. Rgg7 $1 $16 {[%emt 0:00:35]} Rhxc3 {[%emt 0:03:52]} 35. Rgd7 {[%emt 0:01:51]} Rc8 {[%emt 0:01:04]} 36. Rxa6 {[%emt 0:00:47]} R3c7 {[%emt 0:00:25]} 37. Rxc7 {[%emt 0:04:27]} Rxc7 {[%emt 0:00:02]} 38. Kd3 {[%emt 0:00:22]} (38. Rxe6 Rc2+ 39. Ke3 Rxa2 $11) (38. Ra8+ $16 Ke7 39. Ra5) 38... Ke7 $11 {[%emt 0:00:49]} 39. Ra8 {[%emt 0:00:15]} Rd7+ {[%emt 0:00:47]} 40. Ke3 {[%emt 0:00:23]} Rb7 $2 {[%emt 0:00:12][%mdl 8192]} (40... Rd1 $14) 41. a4 $1 $18 {[%emt 0:00:18]} Rb3+ {[%emt 0:00:14] [#]} 42. Ke4 $1 {[%emt 0:00:12]} Rb2 $2 {[%emt 0:01:12] [#]} (42... Rb4+ 43. Ke5 Rb2) 43. f3 $2 {[%emt 0:00:24]} ({White has to play} 43. a5 $1 $18 {[%cal Ra5a6] Hoping for a6.} Rxf2 44. a6) 43... Re2+ $14 {[%emt 0:01:24]} 44. Kd3 {[%emt 0:00:16]} Rf2 $2 {[%emt 0:00:18]} (44... Re1 $1 $14) 45. Ke3 $18 {[%emt 0:00:04]} Ra2 $2 {[%emt 0:00:08]} (45... Rf1 46. a5 Re1+ 47. Kf2 Ra1) 46. a5 $18 {[%emt 0:00:13]} Ra4 {[%emt 0:01:49]} 47. a6 {[%emt 0:00:05]} Kd6 {[%emt 0:00:51]} 48. a7 {[%emt 0:02:35]} Ra3+ {[%emt 0:00:10]} 49. Kf4 {[%emt 0:00:47]} Ra4+ {[%emt 0:00:14]} 50. Kg3 {[%emt 0:01:16]} Ke5 {[%emt 0:00:51]} 51. f4+ {[%emt 0:00:24]} Ke4 {[%emt 0:00:09]} 52. f5 {[%emt 0:00:15]} Ra3+ {[%emt 0:00:49]} 53. Kh4 {[%emt 0:00:15]} 1-0

[Event "98th Caplin Hastings Masters 2024-25"]
[Site "Hastings"]
[Date "2024.12.31"]
[Round "5.3"]
[White "Boyer, Mahel"]
[Black "Siva Mahadevan"]
[Result "0-1"]
[ECO "A07"]
[WhiteElo "2526"]
[BlackElo "2349"]
[Annotator "TA"]
[PlyCount "74"]
[EventDate "2024.12.23"]
[EventType "swiss"]
[EventCountry "ENG"]
[SourceTitle "playchess.com"]
[Source "ChessBase"]
[SourceQuality "1"]
[TimeControl "5400+30"]

{[%evp 9,74,14,23,17,13,19,38,9,18,-5,-3,-5,0,0,0,0,0,0,0,0,0,0,0,0,40,39,43,47,56,65,71,80,75,70,87,87,78,0,0,0,0,0,0,0,0,-30,0,0,6,0,77,92,92,92,97,-2084,-1909,-29987,-1124,-1757,-1702,-1587,-1427,-29972,-29974,-6710,-6303]} 1. Nf3 {[%emt 0:07:40]} d5 {[%emt 0:00:21]} 2. g3 {[%emt 0:00:22]} Nf6 {[%emt 0:00:40]} 3. Bg2 {[%emt 0:00:05]} c6 {[%emt 0:00:39]} 4. O-O {[%emt 0:00:22]} Bg4 {[%emt 0:00:47]} 5. h3 {[%emt 0:00:18]} Bh5 {[%emt 0:00:12]} 6. d4 {[%emt 0:01:04]} Nbd7 {[%emt 0:00:33] [#]} 7. c4 $1 {[%emt 0:00:53]} e6 {[%emt 0:00:30]} 8. Ne5 {[%emt 0:01:27]} Bd6 {[%emt 0:19:58]} 9. Bf4 {[%emt 0:02:09]} Qc7 {[%emt 0:01:36]} 10. Nxd7 {[%emt 0:09:49]} Nxd7 {[%emt 0:00:14]} 11. Bxd6 {[%emt 0:00:22]} Qxd6 {[%emt 0:00:03]} 12. cxd5 {[%emt 0:05:47]} exd5 {[%emt 0:06:49]} 13. Nc3 {[%emt 0:00:28][%cal Bb1c3,Bc3e4,Be4c5][%mdl 32]} O-O {[%emt 0:00:13]} 14. Qb3 {[%emt 0:02:26]} Nb6 {[%emt 0:03:10]} 15. f4 {[%emt 0:03:06]} f5 {[%emt 0:03:48]} 16. e4 {[%emt 0:00:44]} fxe4 {[%emt 0:00:15]} (16... Qg6 $5) 17. Nxe4 {[%emt 0:00:15]} Qe7 {[%emt 0:01:18]} 18. Nc5 {[%emt 0:05:29]} Rae8 {[%emt 0:00:57]} 19. Qc3 {[%emt 0:02:11]} Bf7 {[%emt 0:19:26]} 20. Rae1 {[%emt 0:02:20]} Qc7 {[%emt 0:00:11]} 21. Qa5 {[%emt 0:01:25]} Rxe1 {[%emt 0:17:28]} 22. Rxe1 {[%emt 0:00:59][%cal Og1h2]} g5 {[%emt 0:00:14]} 23. Re5 {[%emt 0:15:53]} (23. Rf1 $16) 23... gxf4 $11 {[%emt 0:00:37]} 24. gxf4 {[%emt 0:00:16]} Qd6 {[%emt 0:00:21] Prevents f5.} 25. Qxa7 {[%emt 0:06:09]} Nc4 {[%emt 0:01:16][%csl LRb2,LRe5]} 26. Rg5+ {[%emt 0:01:23]} (26. Nxb7 Qc7 27. Re1 (27. Rg5+ $2 Bg6 $19) 27... Qxf4 $17 (27... Nd6 $2 28. Qa3 $17)) 26... Bg6 {[%emt 0:02:19]} 27. Nd3 {[%emt 0:00:21]} (27. Qxb7 {with more complications.} Qxf4 28. Qe7 Qxd4+ 29. Kh2) 27... Nxb2 {[%emt 0:00:39]} 28. Ne5 $1 {[%emt 0:01:01]} (28. Nxb2 Qxf4 (28... Rxf4 $2 29. Nd3 $18) 29. Rg4 Qf2+ 30. Kh2 Qxb2 $17) 28... Qb4 {[%emt 0:14:06][%cal Ob2c4]} 29. Kh2 {[%emt 0:03:01][%cal Of4f5] and f5! would now be decisive} Kh8 {[%emt 0:04:17] [#]} (29... Nc4 $1 $11) 30. a3 $1 $16 {[%emt 0:18:03]} Qd2 {[%emt 0:00:27]} 31. Rg4 {[%emt 0:00:10]} (31. Qxb7 Qxf4+ 32. Rg3 Nc4 $11) 31... Bh5 {[%emt 0:00:07]} 32. Rh4 $2 {[%emt 0:03:53][%mdl 8192]} (32. Qc5 $16 Rxf4 33. Qd6 Bxg4 34. Qd8+ Kg7 35. Qg5+ Kf8 36. Qd8+ Kg7) 32... Rg8 $1 $19 {[%emt 0:00:39][%csl Gg8][%cal Rd2g2]} (32... Rxf4 $2 33. Qb8+ (33. Rxh5 Rf8 $18) 33... Kg7 34. Rxh5 $18) 33. Ng4 {[%emt 0:00:45]} Qxf4+ {[%emt 0:00:05] White is weak on the light squares} (33... Nd3 $142 34. Rxh5 Ne1 (34... Nxf4 35. Rxh7+ Kxh7 36. Kg3 Ne2+ 37. Kf2 Nc3+ 38. Kg3 Qe1+ 39. Kf4 Rf8+ 40. Nf6+ Rxf6+ 41. Kg5 Rg6+ 42. Kh5 Qe2+ 43. Bf3 Qxf3+ 44. Kh4 Rh6+ 45. Kg5 Rh5#) 35. Rxh7+ Kxh7 36. Qxb7+ Kh8 37. Qb2 Qxb2 38. Ne3 Rxg2+ (38... Nxg2 {gets mated.} 39. Ng4 Ne3+ 40. Kg3 Qg2+ 41. Kh4 Nf5+ 42. Kh5 Qxh3#) 39. Kh1 Rh2+ 40. Kg1 Qf2#) 34. Kh1 {[%emt 0:00:12] [#]} Re8 $1 {[%emt 0:00:41]} 35. Qa5 {[%emt 0:00:53] Prevents Re1+.} Bg6 {[%emt 0:00:48][%cal Ob2d3] and ...Nd3! should not be overlooked} 36. Rh6 {[%emt 0:01:48]} Nd3 {[%emt 0:00:25]} 37. Rxg6 {[%emt 0:00:41]} hxg6 {[%emt 0:00:21]} 0-1

[Event "98th Caplin Hastings Masters 2024-25"]
[Site "Hastings"]
[Date "2024.12.31"]
[Round "5.4"]
[White "Roux, Baptiste"]
[Black "Stefansson, Vignir Vatnar"]
[Result "0-1"]
[ECO "C41"]
[WhiteElo "2338"]
[BlackElo "2537"]
[Annotator "TA"]
[PlyCount "80"]
[EventDate "2024.12.23"]
[EventType "swiss"]
[EventCountry "ENG"]
[SourceTitle "playchess.com"]
[Source "ChessBase"]
[SourceQuality "1"]
[TimeControl "5400+30"]

{[%evp 12,80,32,33,52,27,60,30,55,51,41,-10,-14,0,52,49,28,25,69,44,52,0,0,0,0,0,0,0,0,0,0,-70,-70,-83,96,-125,-125,-283,-273,-371,-349,-368,-285,-376,-329,-476,-261,-275,-250,-398,-396,-506,-496,-29968,-29961,-6379,-540,-545,-491,-448,-521,-514,-532,-573,-535,-573,-549,-532,-507,-492,-464]} 1. e4 {[%emt 0:07:21]} d6 {[%emt 0:03:09]} 2. d4 {[%emt 0:00:36]} Nf6 {[%emt 0:00:06]} 3. Nc3 {[%emt 0:00:32]} e5 {[%emt 0:00:07]} 4. Nf3 {[%emt 0:01:48]} Nbd7 {[%emt 0:00:08]} 5. Bc4 {[%emt 0:04:04]} Be7 {[%emt 0:00:13]} 6. O-O {[%emt 0:01:02]} c6 {[%emt 0:00:04]} 7. a4 {[%emt 0:04:43]} a5 {[%emt 0:00:16]} 8. Re1 {[%emt 0:09:48]} h6 {[%emt 0:00:13]} 9. Ba2 {[%emt 0:02:42]} Qc7 {[%emt 0:02:48]} 10. Be3 {[%emt 0:13:11]} Ng4 {[%emt 0:01:39]} 11. Qd2 {[%emt 0:06:22]} (11. Bd2 $14) 11... O-O $11 {[%emt 0:02:37]} 12. Ne2 {[%emt 0:02:37]} exd4 {[%emt 0:12:03]} (12... Nxe3 $11 13. Qxe3 Nf6) 13. Bxd4 $14 {[%emt 0:02:32]} Nde5 {[%emt 0:01:49]} 14. Qf4 {[%emt 0:04:32]} Nxf3+ {[%emt 0:01:19]} 15. Qxf3 {[%emt 0:01:03]} (15. gxf3 $5 Ne5 16. Qg3 $14) 15... d5 {[%emt 0:00:56]} 16. Ng3 {[%emt 0:01:14]} (16. exd5 $2 Qxh2+ 17. Kf1 Qh1+ 18. Ng1 Nh2+ 19. Ke2 Nxf3 $19) (16. Qg3 $14 Bd6 17. f4) 16... c5 $11 {[%emt 0:01:11]} 17. h3 {[%emt 0:01:55]} cxd4 {[%emt 0:06:31]} 18. hxg4 {[%emt 0:00:09]} Qxc2 {[%emt 0:00:59]} 19. exd5 {[%emt 0:03:50]} Qxb2 {[%emt 0:09:28]} 20. Ne4 {[%emt 0:05:53] Threatens to win with d6.} Qb6 {[%emt 0:00:43]} 21. Qf4 {[%emt 0:04:53]} ({White should play} 21. g5 $1 $11) 21... Bb4 $15 {[%emt 0:00:23]} 22. Red1 $1 {[%emt 0:01:51]} Bd7 $2 {[%emt 0:02:11]} (22... Bxg4 $1 $17 23. Qxg4 f5) 23. g5 $2 {[%emt 0:02:01]} (23. d6 $1 $16) 23... hxg5 $1 $17 {[%emt 0:01:51]} (23... Bxa4 $2 24. d6 h5 25. Nf6+ (25. g6 Kh8 $18) 25... Kh8 (25... gxf6 26. gxf6 Qc5 27. Qg3+) 26. Rxd4 $18) 24. Nxg5 $2 {[%emt 0:01:29] [#]} (24. Qxg5 $17 Rae8 (24... Bxa4 25. d6 $14) 25. Qh4) 24... Qh6 $1 $19 {[%emt 0:01:07]} (24... Bxa4 $2 25. d6 Qxd6 (25... Bxd1 26. Qf5) 26. Bxf7+ (26. Qxd4 $2 {is the wrong capture.} Bxd1 27. Qxd6 Bxd6 $19) 26... Kh8 27. Qxd6 (27. Qxd4 Bxd1 28. Rxd1 Qxd4 $17) 27... Bxd6 28. Rxd4 $18 (28. Rxa4 Be7 $11)) 25. g3 {[%emt 0:06:00]} Bd6 {[%emt 0:04:23] This pair of bishops is nice.} (25... Bxa4 $2 26. Rxd4 Bc3 27. Nxf7 (27. d6 $2 Bc6 $19) 27... Qxf4 (27... Bxa1 28. Nxh6+ gxh6 29. d6+ Kg7 30. Qe5+ Rf6 31. Qe7+) (27... Rxf7 28. d6 $17) 28. Rxf4 $19) 26. Qd2 {[%emt 0:00:44]} Bxa4 {[%emt 0:00:15]} 27. Rdb1 {[%emt 0:02:45]} Be7 {[%emt 0:06:06]} 28. f4 {[%emt 0:01:39]} (28. Qxd4 $142 Bc2 29. Ne4) 28... Bxg5 {[%emt 0:00:33]} (28... Bb4 $142 29. Qxd4 Rac8) 29. fxg5 {[%emt 0:00:01]} Qh3 {[%emt 0:00:22]} 30. Qf4 {[%emt 0:00:11]} (30. Qh2 $142 Qxh2+ 31. Kxh2) 30... Rac8 {[%emt 0:04:43]} 31. Rb2 {[%emt 0:01:16]} Bc2 {[%emt 0:01:02] ...Rc3 would now be deadly.} 32. Rf1 {[%emt 0:07:12]} (32. Qh4 $19 Qxh4 33. gxh4) 32... Rc3 {[%emt 0:00:07]} 33. Rf3 {[%emt 0:00:17] [#]} Be4 {[%emt 0:01:05]} 34. Rh2 {[%emt 0:00:22]} Rxf3 {[%emt 0:00:16]} 35. Rxh3 {[%emt 0:00:25]} Rxf4 {[%emt 0:00:04]} 36. gxf4 {[%emt 0:00:04] KRB-KRB. Black is two pawns up.} Rd8 {[%emt 0:00:16][%cal Ob7b5]} 37. Ra3 {[%emt 0:00:27]} Bxd5 {[%emt 0:00:30]} 38. Rxa5 {[%emt 0:00:08]} Bxa2 {[%emt 0:00:08]} 39. Rxa2 {[%emt 0:00:05]} d3 {[%emt 0:00:08] ( -> ...d2)} 40. Rd2 {[%emt 0:00:22]} Rd4 {[%emt 0:00:02]} 0-1

[Event "98th Caplin Hastings Masters 2024-25"]
[Site "Hastings"]
[Date "2024.12.31"]
[Round "5.5"]
[White "Ghazarian, Kirk"]
[Black "Balaji, Aaravamudhan"]
[Result "1/2-1/2"]
[ECO "D02"]
[WhiteElo "2501"]
[BlackElo "2364"]
[Annotator "TA"]
[PlyCount "103"]
[EventDate "2024.12.23"]
[EventType "swiss"]
[EventCountry "ENG"]
[SourceTitle "playchess.com"]
[Source "ChessBase"]
[SourceQuality "1"]
[TimeControl "5400+30"]

{[%evp 9,103,0,17,19,26,21,22,12,14,0,14,15,18,16,39,35,41,31,51,33,41,12,26,29,41,47,51,49,50,29,75,43,50,41,38,48,42,33,30,31,31,36,28,25,26,33,26,27,27,32,31,33,35,16,77,73,77,64,116,45,47,14,20,0,8,4,5,0,0,0,5,0,0,0,0,0,0,0,0,0,0,-6,-4,-16,74,75,75,77,77,-172,-197,-197,-36,-1354,-20,-20]} 1. d4 {[%emt 0:00:52]} d5 {[%emt 0:00:09]} 2. Nf3 {[%emt 0:00:12]} Nf6 {[%emt 0:00:13]} 3. Bf4 {[%emt 0:00:07]} c5 {[%emt 0:04:30]} 4. e3 {[%emt 1:31:19]} Nc6 {[%emt 0:02:29]} 5. Be2 {[%emt 0:00:00]} Bf5 {[%emt 0:05:44]} 6. dxc5 {[%emt 0:01:00]} e6 {[%emt 0:06:33]} 7. Nd4 {[%emt 0:00:00]} Bxc5 {[%emt 0:01:03]} 8. Nxf5 {[%emt 0:00:00]} exf5 {[%emt 1:13:49]} 9. O-O {[%emt 0:01:30]} O-O {[%emt 0:00:00]} 10. c3 {[%emt 0:00:00]} Ne4 {[%emt 0:01:00]} 11. Nd2 {[%emt 0:01:00]} a6 {[%emt 0:00:30]} 12. Nxe4 {[%emt 0:00:00]} dxe4 {[%emt 0:00:30]} 13. Qxd8 {[%emt 0:00:00]} Rfxd8 {[%emt 0:00:00]} 14. Rfd1 {[%emt 0:01:30] Prevents Rd2.} Kf8 {[%emt 0:00:00]} 15. Bc4 {[%emt 0:00:00]} Ke8 {[%emt 0:01:30]} 16. Kf1 {[%emt 0:01:00]} Be7 {[%emt 0:00:00][%cal Bc5e7,Be7f6,Bf6e5][%mdl 32]} 17. h3 {[%emt 0:00:00]} Bf6 {[%emt 0:01:00]} 18. g4 {[%emt 0:00:00]} g6 {[%emt 0:00:30]} 19. Bd5 {[%emt 0:00:00]} Ne5 {[%emt 0:00:00]} (19... Rd7 $11 {deserves consideration.}) 20. Bxe5 {[%emt 0:00:00]} Bxe5 {[%emt 0:00:00]} 21. gxf5 {[%emt 0:00:00]} gxf5 {[%emt 0:00:00]} 22. Bxb7 {[%emt 0:00:00]} Rab8 {[%emt 0:00:00]} 23. Bc6+ {[%emt 0:00:00]} Ke7 {[%emt 0:00:00]} 24. Rxd8 {[%emt 0:00:00]} Rxd8 $11 {[%emt 0:00:00][%mdl 4096] Endgame KRB-KRB. White is a pawn up.} 25. Rc1 {[%emt 0:00:00]} Rd6 {[%emt 0:00:00]} 26. Ba4 {[%emt 0:00:00]} Rh6 {[%emt 0:00:00]} 27. Rd1 {[%emt 0:00:00]} Rxh3 {[%emt 0:00:00]} 28. Rd7+ {[%emt 0:00:00]} Kf6 {[%emt 0:00:00]} 29. Bb3 {[%emt 0:06:30][%cal Ba4b3,Bb3e6,Be6c8][%mdl 32]} Rh1+ {[%emt 0:00:00]} 30. Kg2 {[%emt 0:00:00]} Rb1 {[%emt 0:00:02]} (30... Rh2+ $2 31. Kg1 $18) 31. Rxf7+ {[%emt 0:00:00]} (31. Bxf7 Rxb2 32. Bd5 Bxc3 $11) 31... Kg5 {[%emt 0:00:57]} (31... Kg6 $1 $11) 32. Be6 $16 {[%emt 0:00:00]} (32. Rxh7 Rxb2 33. Rf7 Bxc3 $11) 32... Bf6 {[%emt 0:00:03]} 33. b4 {[%emt 0:00:00] White is more active.} h5 {[%emt 0:00:01]} ({Black should try} 33... Kg6 $14) 34. Rc7 {[%emt 0:00:00]} (34. c4 $16) 34... Be5 $14 {[%emt 0:01:40]} 35. Rc5 {[%emt 0:00:00]} Kf6 {[%emt 0:00:02]} 36. Bc8 {[%emt 0:00:00]} h4 {[%emt 0:06:15]} 37. Rc6+ {[%emt 0:01:55]} (37. Bxa6 Rb2 38. Bf1 Bg3 39. Rc6+ Kg5 $19) 37... Kg5 {[%emt 0:00:30]} 38. Rc5 {[%emt 0:01:46]} (38. Bxa6 $2 Rb2 39. Rc5 Bg3 $19) 38... Kf6 {[%emt 0:00:30]} 39. Rc6+ {[%emt 0:00:35]} (39. Bxa6 Rb2 40. Bc4 Bg3 $19) 39... Kg5 {[%emt 0:00:00]} 40. Bd7 {[%emt 0:01:14]} (40. Bxa6 $2 Rb2 41. Rc5 Bg3 $19) 40... Rb2 {[%emt 0:00:00]} 41. Rc5 {[%emt 0:00:00]} (41. Rxa6 h3+ 42. Kf1 h2 (42... Bxc3 $2 43. f4+ exf3 44. Be8 $19) 43. Kg2 Rb1 (43... Bxc3 44. Be8 $17) (43... Rxf2+ $2 44. Kxf2 h1=Q 45. Be8 $19)) 41... Kf6 {[%emt 0:00:00]} 42. Rc6+ $1 {[%emt 0:00:00]} Kg5 {[%emt 0:02:00]} 43. Rc5 {[%emt 0:00:44]} (43. Rxa6 h3+ 44. Kf1 h2 (44... Bxc3 $2 45. f4+ exf3 46. Be8 $19) 45. Kg2 Rb1 (45... Bxc3 46. Be8 $17) (45... Rxf2+ $2 46. Kxf2 h1=Q 47. Be8 $19)) 43... Kf6 {[%emt 0:00:00] Threatens to win with ...h3+.} 44. Rc6+ $1 {[%emt 0:00:07]} Kg5 {[%emt 0:00:00] ( -> ...h3+)} 45. Be8 {[%emt 0:01:05] and Rg6+ would now be decisive} (45. Rxa6 h3+ 46. Kf1 h2 (46... Bxc3 $2 47. f4+ exf3 48. Be8 $19)) 45... f4 {[%emt 0:00:00] ( -> ...f3+)} 46. Rc5 {[%emt 0:01:04]} h3+ {[%emt 0:01:19]} (46... f3+ $11 47. Kh3 Kf6) 47. Kxh3 $16 {[%emt 0:00:00]} fxe3 {[%emt 0:00:01]} 48. Rxe5+ {[%emt 0:00:13]} Kf4 {[%emt 0:00:01] [#]} 49. Rxe4+ $2 {[%emt 0:00:44]} Kxe4 $19 {[%emt 0:00:03]} 50. fxe3 {[%emt 0:00:29]} Rxa2 $2 {[%emt 0:01:03]} (50... Kxe3 $19 51. Bf7 Kd3) 51. b5 $2 {[%emt 0:00:30][%mdl 8192]} (51. Bd7 $15) 51... axb5 $2 {[%emt 0:01:23]} ({Weaker is} 51... Kxe3 52. c4 $17) (51... a5 $19 52. c4 Rb2 (52... Kxe3 53. b6 $11)) 52. Bxb5 {[%emt 0:00:05]} 1/2-1/2

[Event "98th Caplin Hastings Masters 2024-25"]
[Site "Hastings"]
[Date "2024.12.31"]
[Round "5.6"]
[White "Grutter, Tim"]
[Black "Kaasen, Tor Fredrik"]
[Result "0-1"]
[ECO "B50"]
[WhiteElo "2379"]
[BlackElo "2473"]
[Annotator "TA"]
[PlyCount "102"]
[EventDate "2024.12.23"]
[EventType "swiss"]
[EventCountry "ENG"]
[SourceTitle "playchess.com"]
[Source "ChessBase"]
[SourceQuality "1"]
[TimeControl "5400+30"]

{[%evp 9,102,-12,1,0,0,11,-2,-4,0,0,0,-4,0,4,27,-15,-16,-15,-16,-18,-19,-24,-22,-18,0,-9,0,-6,0,-11,35,0,0,0,9,-20,-16,-16,-7,-28,-25,-35,-41,-39,-55,-53,-60,-97,-85,-100,-98,-126,-124,-170,-127,-174,-164,-178,-172,-171,-171,-192,-179,-272,-266,-259,-256,-350,-341,-352,-325,-474,-470,-442,-418,-627,-611,-631,-639,-577,-547,-548,-518,-535,-546,-664,-631,-683,-688,-664,-606,-689,-667,-1030,-1006]} 1. e4 {[%emt 0:00:03]} c5 {[%emt 0:01:49]} 2. Nf3 {[%emt 0:00:07]} d6 {[%emt 0:00:16]} 3. Nc3 {[%emt 0:00:16]} Nf6 {[%emt 0:00:13]} 4. e5 {[%emt 0:00:07]} dxe5 {[%emt 0:00:22]} 5. Nxe5 {[%emt 0:00:05]} a6 {[%emt 0:04:40]} 6. g3 {[%emt 0:00:21]} Qd6 {[%emt 0:01:42]} 7. Nf3 {[%emt 0:00:05]} b5 {[%emt 0:04:08]} 8. Bg2 {[%emt 0:01:39]} Bb7 {[%emt 0:00:50]} 9. O-O {[%emt 0:00:28]} e6 {[%emt 0:01:36]} 10. d3 {[%emt 0:00:28]} Be7 {[%emt 0:02:15]} 11. a4 {[%emt 0:00:06]} Qb6 {[%emt 0:03:57]} 12. axb5 {[%emt 0:04:50]} axb5 {[%emt 0:02:28]} 13. Rxa8 {[%emt 0:00:30]} Bxa8 {[%emt 0:00:06]} 14. Ne5 {[%emt 0:00:28]} Bxg2 {[%emt 0:01:40]} 15. Kxg2 {[%emt 0:00:09]} O-O {[%emt 0:03:33]} 16. Qf3 {[%emt 0:02:28]} Rc8 {[%emt 0:03:04]} 17. Ne4 {[%emt 0:17:38]} Nbd7 {[%emt 0:05:25]} 18. Nxf6+ {[%emt 0:05:31]} Nxf6 {[%emt 0:00:10]} 19. Bg5 {[%emt 0:04:43]} Qd6 {[%emt 0:03:29]} (19... Qc7 $11 20. Re1 h6) 20. Re1 {[%emt 0:06:50]} h6 {[%emt 0:03:49]} 21. Bf4 {[%emt 0:06:23][%cal Oe5f7]} Qd5 {[%emt 0:01:11]} 22. Ra1 {[%emt 0:09:23]} g5 {[%emt 0:02:45]} 23. Qxd5 {[%emt 0:00:49]} Nxd5 {[%emt 0:01:35]} 24. Bd2 {[%emt 0:01:19]} Bf6 {[%emt 0:01:00]} 25. f4 {[%emt 0:07:02]} Bxe5 {[%emt 0:15:42]} 26. fxe5 $15 {[%emt 0:00:08][%mdl 4096] Endgame KRB-KRN} c4 {[%emt 0:00:48]} 27. dxc4 {[%emt 0:03:08]} Rxc4 {[%emt 0:04:38]} 28. c3 {[%emt 0:01:19]} Re4 {[%emt 0:01:35]} 29. Kf3 {[%emt 0:08:44] Prevents Re2.} Rxe5 {[%emt 0:02:28]} 30. Ra8+ {[%emt 0:00:06]} Kh7 {[%emt 0:00:54][%cal Og5g4]} 31. Rb8 {[%emt 0:00:08]} (31. h3 $17 {might work better.}) 31... g4+ {[%emt 0:02:06]} 32. Kf2 {[%emt 0:01:04]} (32. Kxg4 $17 Re2 33. Bf4 (33. Bc1 Rc2 $17)) 32... Nf6 $19 {[%emt 0:01:11]} 33. Bf4 {[%emt 0:01:36]} Rh5 {[%emt 0:00:45][%cal Oe6e5]} 34. Kg2 {[%emt 0:00:57]} Rd5 {[%emt 0:02:09]} 35. Be3 {[%emt 0:01:54] [#]} Ne4 $1 {[%emt 0:01:26]} 36. Rb6 {[%emt 0:05:20]} (36. Kf1 $142) 36... Nd2 {[%emt 0:04:12]} 37. Rb7 {[%emt 0:03:31]} Nc4 {[%emt 0:01:07][%csl LRb2,LRe3]} 38. Bc1 {[%emt 0:01:38]} Kg6 {[%emt 0:00:35]} 39. Kf2 {[%emt 0:01:26]} Nxb2 {[%emt 0:01:41]} 40. Ke2 {[%emt 0:01:25]} (40. Bxb2 {was the only chance.} Rd2+ 41. Kg1 Rxb2 42. c4) 40... Nc4 {[%emt 0:00:14]} 41. Rb8 {[%emt 0:00:10]} h5 {[%emt 0:02:51]} 42. Rg8+ {[%emt 0:01:29]} (42. Rh8 $142) 42... Kf5 {[%emt 0:00:38]} 43. Rf8 {[%emt 0:00:54]} f6 {[%emt 0:00:20]} 44. Bh6 {[%emt 0:00:27]} Kg6 {[%emt 0:01:34]} 45. Bc1 {[%emt 0:00:18]} Re5+ {[%emt 0:02:56]} 46. Kd1 {[%emt 0:02:08]} Rf5 {[%emt 0:00:57] Hoping for ...Rf1+.} 47. Rg8+ {[%emt 0:00:28]} Kf7 {[%emt 0:00:19]} 48. Rb8 {[%emt 0:00:18]} Rf1+ {[%emt 0:01:12]} 49. Kc2 {[%emt 0:00:01]} Rf2+ {[%emt 0:00:14]} 50. Kd3 {[%emt 0:01:10]} Ne5+ {[%emt 0:00:31]} 51. Ke3 {[%emt 0:00:19]} Rc2 {[%emt 0:00:08]} 0-1